Workbook

Sheet jaaroverzicht
D3: 2017 Jan & Thea | E3: Periode 1 | F3: Periode 2 | G3: Periode 3 | H3: Periode 4 | I3: Periode 5 | J3: Periode 6 | K3: Periode 7 | L3: Periode 8 | M3: Periode 9 | N3: Periode 10 | O3: Periode 11 | P3: Periode 12 | R3: JAAR OVERZICHT
B4: incasso | E4: 18 jan | F4: 17 febr | G4: 17 mrt | H4: 18 april | I4: 18 mei | J4: 19 juni | K4: 18 juli | L4: 18 aug | M4: 18 sept | N4: 18 okt | O4: 17 nov | P4: 18 dec | R4: per jaar | T4: per maand
B5: datum | E5: 16 febr | F5: 16 mrt | G5: 17 april | H5: 17 mei | I5: 18 juni | J5: 17 juli | K5: 17 aug | L5: 17 sept | M5: 17 okt | N5: 16 nov | O5: 17 dec | P5: 17 jan 2018
D6: Eind saldo vorige periode | F6: =E54 -> 0 | G6: =F54 -> 0 | H6: =G54 -> 0 | I6: 0 | J6: 0 | K6: 0 | L6: 0 | M6: 0 | N6: 0 | O6: 0 | P6: 0
D7: Niet vermeld in de lijst
R8: =SUM(E8:P8) -> 0 | T8: =SUM(R8/12) -> 0
R9: 0 | T9: 0
R10: 0 | T10: 0
R11: 0 | T11: 0
R12: 0 | T12: 0
R13: 0 | T13: 0
R14: 0 | T14: 0
R15: 0 | T15: 0
R16: =SUM(E16:P16) -> 0 | T16: =SUM(R16/12) -> 0
R17: 0 | T17: 0
R18: =SUM(E18:P18) -> 0 | T18: =SUM(R18/12) -> 0
R19: =SUM(E19:P19) -> 0 | T19: =SUM(R19/12) -> 0
R20: 0 | T20: 0
R21: 0 | T21: 0
R22: 0 | T22: 0
R23: 0 | T23: 0
R24: 0 | T24: 0
R25: 0 | T25: 0
R26: 0 | T26: 0
R27: 0 | T27: 0
R28: 0 | T28: 0
R29: 0 | T29: 0
R30: 0 | T30: 0
R31: 0 | T31: 0
R32: 0 | T32: 0
R33: 0 | T33: 0
R34: 0 | T34: 0
R35: 0 | T35: 0
R36: 0 | T36: 0
R37: 0 | T37: 0
R38: 0 | T38: 0
R39: 0 | T39: 0
R40: 0 | T40: 0
R41: 0 | T41: 0
R42: 0 | T42: 0
R43: 0 | T43: 0
R44: 0 | T44: 0
R45: 0 | T45: 0
B46: Inkomsten | E46: =SUM(E8:E15) -> 0 | F46: =SUM(F8:F15) -> 0 | G46: 0 | H46: 0 | I46: 0 | J46: 0 | K46: 0 | L46: 0 | M46: 0 | N46: 0 | O46: 0 | P46: 0 | R46: =SUM(E46:P46) -> 0 | T46: =SUM(R46/12) -> 0
B47: Uitgaves | E47: =SUM(E16:E45) -> 0 | F47: 0 | G47: =SUM(G16:G45) -> 0 | H47: =SUM(H16:H45) -> 0 | I47: =SUM(I16:I45) -> 0 | J47: =SUM(J16:J45) -> 0 | K47: =SUM(K16:K45) -> 0 | L47: 0 | M47: 0 | N47: 0 | O47: 0 | P47: 0 | R47: 0 | T47: 0
B48: Inkomsten - Uitgaves | E48: =SUM(E46-E47) -> 0 | F48: =SUM(F46-F47) -> 0 | G48: 0 | H48: 0 | I48: 0 | J48: 0 | K48: 0 | L48: 0 | M48: 0 | N48: 0 | O48: 0 | P48: 0 | R48: =SUM(R46-R47) -> 0 | T48: =SUM(T46-T47) -> 0
B50: Er staat nu op je rekening | E50: ='up to date'!E4 -> 0 | F50: ='up to date'!E52 -> 0 | G50: ='up to date'!E100 -> 0 | H50: ='up to date'!E148 -> 0 | I50: ='up to date'!E196 -> 0 | J50: ='up to date'!E244 -> 0 | K50: ='up to date'!E292 -> 0 | L50: ='up to date'!E340 -> 0 | M50: ='up to date'!E388 -> 0 | N50: ='up to date'!E436 -> 0 | O50: ='up to date'!E484 -> 0 | P50: ='up to date'!E532 -> 0
B51: meegenomen van je rekening vorige periode | E51: =IF(E50=0,D54) -> 0 | F51: 0 | G51: 0 | H51: 0 | I51: 0 | J51: 0 | K51: 0 | L51: 0 | M51: 0 | N51: 0 | O51: 0 | P51: 0
B52: nog tegoed (up to date) | E52: ='up to date'!E45 -> 0 | F52: ='up to date'!E93 -> 0 | G52: ='up to date'!E141 -> 0 | H52: ='up to date'!E189 -> 0 | I52: ='up to date'!E237 -> 0 | J52: ='up to date'!E285 -> 0 | K52: ='up to date'!E333 -> 0 | L52: ='up to date'!E381 -> 0 | M52: ='up to date'!E429 -> 0 | N52: ='up to date'!E477 -> 0 | O52: ='up to date'!E525 -> 0 | P52: ='up to date'!E573 -> 0
B53: nog te betalen (up to date) | E53: ='up to date'!E46 -> 0 | F53: ='up to date'!E94 -> 0 | G53: ='up to date'!E142 -> 0 | H53: ='up to date'!E190 -> 0 | I53: ='up to date'!E238 -> 0 | J53: ='up to date'!E286 -> 0 | K53: ='up to date'!E334 -> 0 | L53: ='up to date'!E382 -> 0 | M53: ='up to date'!E430 -> 0 | N53: ='up to date'!E478 -> 0 | O53: ='up to date'!E526 -> 0 | P53: ='up to date'!E574 -> 0
B54: Alles doorberekend (zie grafiek) | E54: =SUM(E50+E51+E52-E53) -> 0 | F54: 0 | G54: 0 | H54: 0 | I54: 0 | J54: 0 | K54: 0 | L54: 0 | M54: 0 | N54: 0 | O54: 0 | P54: 0
B60: inkomsten, die ik al gehad heb | E60: =SUM('up to date'!E7:E14)-('up to date'!I12) -> 0 | F60: =SUM('up to date'!E55:E62)-('up to date'!I60) -> 0 | G60: =SUM('up to date'!E103:E110)-('up to date'!I108) -> 0 | H60: =SUM('up to date'!E151:E158)-('up to date'!I156) -> 0 | I60: =SUM('up to date'!E199:E206)-('up to date'!I204) -> 0 | J60: =SUM('up to date'!E247:E254)-('up to date'!I252) -> 0 | K60: =SUM('up to date'!E295:E302)-('up to date'!I300) -> 0 | L60: =SUM('up to date'!E343:E350)-('up to date'!I348) -> 0 | M60: =SUM('up to date'!E391:E398)-('up to date'!I396) -> 0 | N60: =SUM('up to date'!E439:E446)-('up to date'!I444) -> 0 | O60: =SUM('up to date'!E487:E494)-('up to date'!I492) -> 0 | P60: =SUM('up to date'!E535:E542)-('up to date'!I540) -> 0
B61: inkomsten, die ik nog tegoed heb | E61: ='up to date'!E45 -> 0 | F61: ='up to date'!E93 -> 0 | G61: ='up to date'!E141 -> 0 | H61: ='up to date'!E189 -> 0 | I61: ='up to date'!E237 -> 0 | J61: ='up to date'!E285 -> 0 | K61: ='up to date'!E333 -> 0 | L61: ='up to date'!E381 -> 0 | M61: ='up to date'!E429 -> 0 | N61: ='up to date'!E477 -> 0 | O61: ='up to date'!E525 -> 0 | P61: ='up to date'!E573 -> 0
B62: totaal | E62: =SUM(E60:E61) -> 0 | F62: =SUM(F60:F61) -> 0 | G62: =SUM(G60:G61) -> 0 | H62: 0 | I62: 0 | J62: 0 | K62: 0 | L62: 0 | M62: 0 | N62: 0 | O62: 0 | P62: 0
B63: volgens jaaroverzicht | E63: =E46 -> 0 | F63: =F46 -> 0 | G63: 0 | H63: 0 | I63: 0 | J63: 0 | K63: 0 | L63: 0 | M63: 0 | N63: 0 | O63: 0 | P63: 0
B64: verschil | E64: =SUM(E62-E63) -> 0 | F64: =SUM(F62-F63) -> 0 | G64: 0 | H64: 0 | I64: 0 | J64: 0 | K64: 0 | L64: 0 | M64: 0 | N64: 0 | O64: 0 | P64: 0
B66: uitgaves, die ik al betaald heb | E66: =SUM('up to date'!E15:E44)-('up to date'!I31) -> 0 | F66: =SUM('up to date'!E63:E92)-('up to date'!I79) -> 0 | G66: =SUM('up to date'!E111:E140)-('up to date'!I127) -> 0 | H66: =SUM('up to date'!E159:E188)-('up to date'!I175) -> 0 | I66: =SUM('up to date'!E207:E236)-('up to date'!I223) -> 0 | J66: =SUM('up to date'!E255:E284)-('up to date'!I271) -> 0 | K66: =SUM('up to date'!E303:E332)-('up to date'!I319) -> 0 | L66: =SUM('up to date'!E351:E380)-('up to date'!I367) -> 0 | M66: =SUM('up to date'!E399:E428)-('up to date'!I415) -> 0 | N66: =SUM('up to date'!E447:E476)-('up to date'!I463) -> 0 | O66: =SUM('up to date'!E495:E524)-('up to date'!I511) -> 0 | P66: =SUM('up to date'!E543:E572)-('up to date'!I559) -> 0
B67: uitgaves, nog te betalen (up to date) | E67: ='up to date'!E46 -> 0 | F67: ='up to date'!E94 -> 0 | G67: ='up to date'!E142 -> 0 | H67: ='up to date'!E190 -> 0 | I67: ='up to date'!E238 -> 0 | J67: ='up to date'!E286 -> 0 | K67: ='up to date'!E334 -> 0 | L67: ='up to date'!E382 -> 0 | M67: ='up to date'!E430 -> 0 | N67: ='up to date'!E478 -> 0 | O67: ='up to date'!E526 -> 0 | P67: ='up to date'!E574 -> 0
B68: totaal | E68: =SUM(E66:E67) -> 0 | F68: =SUM(F66:F67) -> 0 | G68: =SUM(G66:G67) -> 0 | H68: 0 | I68: 0 | J68: 0 | K68: 0 | L68: 0 | M68: 0 | N68: 0 | O68: 0 | P68: 0
B69: volgens jaaroverzicht | E69: =E47 -> 0 | F69: =F47 -> 0 | G69: 0 | H69: 0 | I69: 0 | J69: 0 | K69: 0 | L69: 0 | M69: 0 | N69: 0 | O69: 0 | P69: 0
B70: verschil | E70: =SUM(E68-E69) -> 0 | F70: =SUM(F68-F69) -> 0 | G70: 0 | H70: 0 | I70: 0 | J70: 0 | K70: 0 | L70: 0 | M70: 0 | N70: 0 | O70: 0 | P70: 0
B98: ---
B144: ---
B190: ---
B236: ---
B328: ---
B374: ---
B420: ---
B466: ---
B512: ---

Sheet up to date
B2: =CONCATENATE(jaaroverzicht!E3," , ",jaaroverzicht!E4," t/m ",jaaroverzicht!E5) -> Periode 1 , 18 jan t/m 16 febr | E2: =NOW() -> 2017-04-24T19:23:03.950 | N2: vul het huidige saldo in van je rekening | R2: =NOW() -> 2017-04-24T19:23:03.950 | T2: =NOW() -> 42849.80768
B3: =jaaroverzicht!E5-R2+1 -> -66.80768461 | C3: =IF(B3>=2,"dagen duurd deze periode nog",IF(B3=1,"dag duurd deze periode nog","ga naar de volgende periode !!!")) -> ga naar de volgende periode !!!
C4: Er staat nu op de rekening : | E4: 0 | N4: vink aan, wat is af of bijgeschreven
B5: incasso | C5: Als alles is verekend : | E5: =E4+I12-I31 -> 0 | R5: Deze periode naar bureaublad in .pdf
B6: datum | N6: klik op de desbetreffende icoon, voor de internet site
B7: =jaaroverzicht!B8 -> 0 | C7: =jaaroverzicht!D8 -> 0 | D7: =IF(G7=TRUE,"",E7) -> 0 | E7: =jaaroverzicht!E8 -> 0 | G7: FALSE
B8: =jaaroverzicht!B9 -> 0 | C8: =jaaroverzicht!D9 -> 0 | D8: =IF(G8=TRUE,"",E8) -> 0 | E8: =jaaroverzicht!E9 -> 0 | G8: FALSE
B9: =jaaroverzicht!B10 -> 0 | C9: =jaaroverzicht!D10 -> 0 | D9: 0 | E9: =jaaroverzicht!E10 -> 0 | G9: FALSE | I9: nog niet
B10: =jaaroverzicht!B11 -> 0 | C10: =jaaroverzicht!D11 -> 0 | D10: 0 | E10: =jaaroverzicht!E11 -> 0 | G10: FALSE | I10: ontvangen
B11: =jaaroverzicht!B12 -> 0 | C11: =jaaroverzicht!D12 -> 0 | D11: 0 | E11: =jaaroverzicht!E12 -> 0 | G11: FALSE | I11: totaal
B12: =jaaroverzicht!B13 -> 0 | C12: =jaaroverzicht!D13 -> 0 | D12: 0 | E12: =jaaroverzicht!E13 -> 0 | G12: FALSE | I12: =SUM(D7:D14) -> 0
B13: =jaaroverzicht!B14 -> 0 | C13: =jaaroverzicht!D14 -> 0 | D13: 0 | E13: =jaaroverzicht!E14 -> 0 | G13: FALSE
B14: =jaaroverzicht!B15 -> 0 | C14: =jaaroverzicht!D15 -> 0 | D14: 0 | E14: =jaaroverzicht!E15 -> 0 | G14: FALSE
B15: =jaaroverzicht!B16 -> 0 | C15: =jaaroverzicht!D16 -> 0 | D15: 0 | E15: =jaaroverzicht!E16 -> 0 | G15: FALSE
B16: =jaaroverzicht!B17 -> 0 | C16: =jaaroverzicht!D17 -> 0 | D16: =IF(G16=TRUE,"",E16) -> 0 | E16: =jaaroverzicht!E17 -> 0 | G16: FALSE | N16: Jaaroverzicht alle inkomsten en uitgave`s
B17: =jaaroverzicht!B18 -> 0 | C17: =jaaroverzicht!D18 -> 0 | D17: 0 | E17: =jaaroverzicht!E18 -> 0 | G17: FALSE
B18: =jaaroverzicht!B19 -> 0 | C18: =jaaroverzicht!D19 -> 0 | D18: 0 | E18: =jaaroverzicht!E19 -> 0 | G18: FALSE
B19: =jaaroverzicht!B20 -> 0 | C19: =jaaroverzicht!D20 -> 0 | D19: 0 | E19: =jaaroverzicht!E20 -> 0 | G19: FALSE
B20: =jaaroverzicht!B21 -> 0 | C20: =jaaroverzicht!D21 -> 0 | D20: 0 | E20: =jaaroverzicht!E21 -> 0 | G20: FALSE
B21: =jaaroverzicht!B22 -> 0 | C21: =jaaroverzicht!D22 -> 0 | D21: 0 | E21: =jaaroverzicht!E22 -> 0 | G21: FALSE
B22: =jaaroverzicht!B23 -> 0 | C22: =jaaroverzicht!D23 -> 0 | D22: 0 | E22: =jaaroverzicht!E23 -> 0 | G22: FALSE
B23: =jaaroverzicht!B24 -> 0 | C23: =jaaroverzicht!D24 -> 0 | D23: 0 | E23: =jaaroverzicht!E24 -> 0 | G23: FALSE
B24: =jaaroverzicht!B25 -> 0 | C24: =jaaroverzicht!D25 -> 0 | D24: 0 | E24: =jaaroverzicht!E25 -> 0 | G24: FALSE
B25: =jaaroverzicht!B26 -> 0 | C25: =jaaroverzicht!D26 -> 0 | D25: 0 | E25: =jaaroverzicht!E26 -> 0 | G25: FALSE
B26: =jaaroverzicht!B27 -> 0 | C26: =jaaroverzicht!D27 -> 0 | D26: 0 | E26: =jaaroverzicht!E27 -> 0 | G26: FALSE
B27: =jaaroverzicht!B28 -> 0 | C27: =jaaroverzicht!D28 -> 0 | D27: 0 | E27: =jaaroverzicht!E28 -> 0 | G27: FALSE
B28: =jaaroverzicht!B29 -> 0 | C28: =jaaroverzicht!D29 -> 0 | D28: 0 | E28: =jaaroverzicht!E29 -> 0 | G28: FALSE | I28: nog niet
B29: =jaaroverzicht!B30 -> 0 | C29: =jaaroverzicht!D30 -> 0 | D29: 0 | E29: =jaaroverzicht!E30 -> 0 | G29: FALSE | I29: betaald
B30: =jaaroverzicht!B31 -> 0 | C30: =jaaroverzicht!D31 -> 0 | D30: 0 | E30: =jaaroverzicht!E31 -> 0 | G30: FALSE | I30: totaal | N30: Eindsaldo - per maand | R30: Hier wordt het eindsaldo steeds meegenomen naar de volgende maand
B31: =jaaroverzicht!B32 -> 0 | C31: =jaaroverzicht!D32 -> 0 | D31: 0 | E31: =jaaroverzicht!E32 -> 0 | G31: FALSE | I31: =SUM(D15:D44) -> 0
B32: =jaaroverzicht!B33 -> 0 | C32: =jaaroverzicht!D33 -> 0 | D32: 0 | E32: =jaaroverzicht!E33 -> 0 | G32: FALSE
B33: =jaaroverzicht!B34 -> 0 | C33: =jaaroverzicht!D34 -> 0 | D33: 0 | E33: =jaaroverzicht!E34 -> 0 | G33: FALSE
B34: =jaaroverzicht!B35 -> 0 | C34: =jaaroverzicht!D35 -> 0 | D34: 0 | E34: =jaaroverzicht!E35 -> 0 | G34: FALSE
B35: =jaaroverzicht!B36 -> 0 | C35: =jaaroverzicht!D36 -> 0 | D35: 0 | E35: =jaaroverzicht!E36 -> 0 | G35: FALSE
B36: =jaaroverzicht!B37 -> 0 | C36: =jaaroverzicht!D37 -> 0 | D36: 0 | E36: =jaaroverzicht!E37 -> 0 | G36: FALSE
B37: =jaaroverzicht!B38 -> 0 | C37: =jaaroverzicht!D38 -> 0 | D37: 0 | E37: =jaaroverzicht!E38 -> 0 | G37: FALSE
B38: =jaaroverzicht!B39 -> 0 | C38: =jaaroverzicht!D39 -> 0 | D38: 0 | E38: =jaaroverzicht!E39 -> 0 | G38: FALSE
B39: =jaaroverzicht!B40 -> 0 | C39: =jaaroverzicht!D40 -> 0 | D39: 0 | E39: =jaaroverzicht!E40 -> 0 | G39: FALSE
B40: =jaaroverzicht!B41 -> 0 | C40: =jaaroverzicht!D41 -> 0 | D40: 0 | E40: =jaaroverzicht!E41 -> 0 | G40: FALSE
B41: =jaaroverzicht!B42 -> 0 | C41: =jaaroverzicht!D42 -> 0 | D41: 0 | E41: =jaaroverzicht!E42 -> 0 | G41: FALSE
B42: =jaaroverzicht!B43 -> 0 | C42: =jaaroverzicht!D43 -> 0 | D42: 0 | E42: =jaaroverzicht!E43 -> 0 | G42: FALSE
B43: =jaaroverzicht!B44 -> 0 | C43: =jaaroverzicht!D44 -> 0 | D43: 0 | E43: =jaaroverzicht!E44 -> 0 | G43: FALSE
B44: =jaaroverzicht!B45 -> 0 | C44: =jaaroverzicht!D45 -> 0 | D44: 0 | E44: =jaaroverzicht!E45 -> 0 | G44: FALSE
B45: Nog tegoed | D45: =jaaroverzicht!E46 -> 0 | E45: =I12 -> 0 | G45: FALSE
B46: Nog te betalen | D46: =jaaroverzicht!E47 -> 0 | E46: =I31 -> 0 | G46: FALSE
G47: FALSE
G48: FALSE
G49: FALSE
B50: =CONCATENATE(jaaroverzicht!F3," , ",jaaroverzicht!F4," t/m ",jaaroverzicht!F5) -> Periode 2 , 17 febr t/m 16 mrt | E50: =NOW() -> 2017-04-24T19:23:03.950 | G50: FALSE | N50: vul het huidige saldo in van je rekening | R50: =NOW() -> 2017-04-24T19:23:03.950 | T50: =NOW() -> 42849.80768
B51: =jaaroverzicht!F5-R50+1 -> -38.80768461 | C51: =IF(B51>=2,"dagen duurd deze periode nog",IF(B51=1,"dag duurd deze periode nog","ga naar de volgende periode !!!")) -> ga naar de volgende periode !!! | G51: FALSE
C52: Er staat nu op de rekening : | E52: 0 | G52: FALSE | N52: vink aan, wat is af of bijgeschreven
B53: incasso | C53: Als alles is verekend : | E53: =E52+I60-I79 -> 0 | G53: FALSE | R53: Deze periode naar bureaublad in .pdf
B54: datum | G54: FALSE | N54: klik op de desbetreffende icoon, voor de internet site
B55: =jaaroverzicht!B8 -> 0 | C55: =jaaroverzicht!D8 -> 0 | D55: =IF(G55=TRUE,"",E55) -> 0 | E55: =jaaroverzicht!F8 -> 0 | G55: FALSE
B56: =jaaroverzicht!B9 -> 0 | C56: =jaaroverzicht!D9 -> 0 | D56: 0 | E56: =jaaroverzicht!F9 -> 0 | G56: FALSE
B57: =jaaroverzicht!B10 -> 0 | C57: =jaaroverzicht!D10 -> 0 | D57: 0 | E57: =jaaroverzicht!F10 -> 0 | G57: FALSE | I57: nog niet
B58: =jaaroverzicht!B11 -> 0 | C58: =jaaroverzicht!D11 -> 0 | D58: 0 | E58: =jaaroverzicht!F11 -> 0 | G58: FALSE | I58: ontvangen
B59: =jaaroverzicht!B12 -> 0 | C59: =jaaroverzicht!D12 -> 0 | D59: 0 | E59: =jaaroverzicht!F12 -> 0 | G59: FALSE | I59: totaal
B60: =jaaroverzicht!B13 -> 0 | C60: =jaaroverzicht!D13 -> 0 | D60: 0 | E60: =jaaroverzicht!F13 -> 0 | G60: FALSE | I60: =SUM(D55:D62) -> 0
B61: =jaaroverzicht!B14 -> 0 | C61: =jaaroverzicht!D14 -> 0 | D61: 0 | E61: =jaaroverzicht!F14 -> 0 | G61: FALSE
B62: =jaaroverzicht!B15 -> 0 | C62: =jaaroverzicht!D15 -> 0 | D62: 0 | E62: =jaaroverzicht!F15 -> 0 | G62: FALSE
B63: =jaaroverzicht!B16 -> 0 | C63: =jaaroverzicht!D16 -> 0 | D63: 0 | E63: =jaaroverzicht!F16 -> 0 | G63: FALSE
B64: =jaaroverzicht!B17 -> 0 | C64: =jaaroverzicht!D17 -> 0 | D64: 0 | E64: =jaaroverzicht!F17 -> 0 | G64: FALSE | N64: Jaaroverzicht alle inkomsten en uitgave`s
B65: =jaaroverzicht!B18 -> 0 | C65: =jaaroverzicht!D18 -> 0 | D65: 0 | E65: =jaaroverzicht!F18 -> 0 | G65: FALSE
B66: =jaaroverzicht!B19 -> 0 | C66: =jaaroverzicht!D19 -> 0 | D66: 0 | E66: =jaaroverzicht!F19 -> 0 | G66: FALSE
B67: =jaaroverzicht!B20 -> 0 | C67: =jaaroverzicht!D20 -> 0 | D67: 0 | E67: =jaaroverzicht!F20 -> 0 | G67: FALSE
B68: =jaaroverzicht!B21 -> 0 | C68: =jaaroverzicht!D21 -> 0 | D68: 0 | E68: =jaaroverzicht!F21 -> 0 | G68: FALSE
B69: =jaaroverzicht!B22 -> 0 | C69: =jaaroverzicht!D22 -> 0 | D69: 0 | E69: =jaaroverzicht!F22 -> 0 | G69: FALSE
B70: =jaaroverzicht!B23 -> 0 | C70: =jaaroverzicht!D23 -> 0 | D70: 0 | E70: =jaaroverzicht!F23 -> 0 | G70: FALSE
B71: =jaaroverzicht!B24 -> 0 | C71: =jaaroverzicht!D24 -> 0 | D71: 0 | E71: =jaaroverzicht!F24 -> 0 | G71: FALSE
B72: =jaaroverzicht!B25 -> 0 | C72: =jaaroverzicht!D25 -> 0 | D72: 0 | E72: =jaaroverzicht!F25 -> 0 | G72: FALSE
A73: .. | B73: =jaaroverzicht!B26 -> 0 | C73: =jaaroverzicht!D26 -> 0 | D73: 0 | E73: =jaaroverzicht!F26 -> 0 | G73: FALSE
B74: =jaaroverzicht!B27 -> 0 | C74: =jaaroverzicht!D27 -> 0 | D74: 0 | E74: =jaaroverzicht!F27 -> 0 | G74: FALSE
B75: =jaaroverzicht!B28 -> 0 | C75: =jaaroverzicht!D28 -> 0 | D75: 0 | E75: =jaaroverzicht!F28 -> 0 | G75: FALSE
B76: =jaaroverzicht!B29 -> 0 | C76: =jaaroverzicht!D29 -> 0 | D76: 0 | E76: =jaaroverzicht!F29 -> 0 | G76: FALSE | I76: nog niet
B77: =jaaroverzicht!B30 -> 0 | C77: =jaaroverzicht!D30 -> 0 | D77: 0 | E77: =jaaroverzicht!F30 -> 0 | G77: FALSE | I77: betaald
B78: =jaaroverzicht!B31 -> 0 | C78: =jaaroverzicht!D31 -> 0 | D78: 0 | E78: =jaaroverzicht!F31 -> 0 | G78: FALSE | I78: totaal | N78: Eindsaldo - per maand | R78: Hier wordt het eindsaldo steeds meegenomen naar de volgende maand
B79: =jaaroverzicht!B32 -> 0 | C79: =jaaroverzicht!D32 -> 0 | D79: 0 | E79: =jaaroverzicht!F32 -> 0 | G79: FALSE | I79: =SUM(D63:D92) -> 0
B80: =jaaroverzicht!B33 -> 0 | C80: =jaaroverzicht!D33 -> 0 | D80: 0 | E80: =jaaroverzicht!F33 -> 0 | G80: FALSE
B81: =jaaroverzicht!B34 -> 0 | C81: =jaaroverzicht!D34 -> 0 | D81: 0 | E81: =jaaroverzicht!F34 -> 0 | G81: FALSE
B82: =jaaroverzicht!B35 -> 0 | C82: =jaaroverzicht!D35 -> 0 | D82: 0 | E82: =jaaroverzicht!F35 -> 0 | G82: FALSE
B83: =jaaroverzicht!B36 -> 0 | C83: =jaaroverzicht!D36 -> 0 | D83: 0 | E83: =jaaroverzicht!F36 -> 0 | G83: FALSE
B84: =jaaroverzicht!B37 -> 0 | C84: =jaaroverzicht!D37 -> 0 | D84: 0 | E84: =jaaroverzicht!F37 -> 0 | G84: FALSE
B85: =jaaroverzicht!B38 -> 0 | C85: =jaaroverzicht!D38 -> 0 | D85: 0 | E85: =jaaroverzicht!F38 -> 0 | G85: FALSE
B86: =jaaroverzicht!B39 -> 0 | C86: =jaaroverzicht!D39 -> 0 | D86: 0 | E86: =jaaroverzicht!F39 -> 0 | G86: FALSE
B87: =jaaroverzicht!B40 -> 0 | C87: =jaaroverzicht!D40 -> 0 | D87: 0 | E87: =jaaroverzicht!F40 -> 0 | G87: FALSE
B88: =jaaroverzicht!B41 -> 0 | C88: =jaaroverzicht!D41 -> 0 | D88: 0 | E88: =jaaroverzicht!F41 -> 0 | G88: FALSE
B89: =jaaroverzicht!B42 -> 0 | C89: =jaaroverzicht!D42 -> 0 | D89: 0 | E89: =jaaroverzicht!F42 -> 0 | G89: FALSE
B90: =jaaroverzicht!B43 -> 0 | C90: =jaaroverzicht!D43 -> 0 | D90: 0 | E90: =jaaroverzicht!F43 -> 0 | G90: FALSE
B91: =jaaroverzicht!B44 -> 0 | C91: =jaaroverzicht!D44 -> 0 | D91: 0 | E91: =jaaroverzicht!F44 -> 0 | G91: FALSE
B92: =jaaroverzicht!B45 -> 0 | C92: =jaaroverzicht!D45 -> 0 | D92: 0 | E92: =jaaroverzicht!F45 -> 0 | G92: FALSE
B93: Nog tegoed | D93: =jaaroverzicht!F46 -> 0 | E93: =I60 -> 0 | G93: FALSE
B94: Nog te betalen | D94: =jaaroverzicht!F47 -> 0 | E94: =I79 -> 0 | G94: FALSE
G95: FALSE
G96: FALSE
G97: FALSE
B98: =CONCATENATE(jaaroverzicht!G3," , ",jaaroverzicht!G4," t/m ",jaaroverzicht!G5) -> Periode 3 , 17 mrt t/m 17 april | E98: =NOW() -> 2017-04-24T19:23:03.950 | G98: FALSE | N98: vul het huidige saldo in van je rekening | R98: =NOW() -> 2017-04-24T19:23:03.950 | T98: =NOW() -> 42849.80768
B99: =jaaroverzicht!G5-R98+1 -> -6.807684606 | C99: =IF(B99>=2,"dagen duurd deze periode nog",IF(B99=1,"dag duurd deze periode nog","ga naar de volgende periode !!!")) -> ga naar de volgende periode !!! | G99: FALSE
C100: Er staat nu op de rekening : | E100: 0 | G100: FALSE | N100: vink aan, wat is af of bijgeschreven
B101: incasso | C101: Als alles is verekend : | E101: =E100+I108-I127 -> 0 | G101: FALSE | R101: Deze periode naar bureaublad in .pdf
B102: datum | G102: FALSE | N102: klik op de desbetreffende icoon, voor de internet site
B103: =jaaroverzicht!B8 -> 0 | C103: =jaaroverzicht!D8 -> 0 | D103: =IF(G103=TRUE,"",E103) -> 0 | E103: =jaaroverzicht!G8 -> 0 | G103: FALSE
B104: =jaaroverzicht!B9 -> 0 | C104: =jaaroverzicht!D9 -> 0 | D104: =IF(G104=TRUE,"",E104) -> 0 | E104: =jaaroverzicht!G9 -> 0 | G104: FALSE
B105: =jaaroverzicht!B10 -> 0 | C105: =jaaroverzicht!D10 -> 0 | D105: 0 | E105: =jaaroverzicht!G10 -> 0 | G105: FALSE | I105: nog niet
B106: =jaaroverzicht!B11 -> 0 | C106: =jaaroverzicht!D11 -> 0 | D106: 0 | E106: =jaaroverzicht!G11 -> 0 | G106: FALSE | I106: ontvangen
B107: =jaaroverzicht!B12 -> 0 | C107: =jaaroverzicht!D12 -> 0 | D107: 0 | E107: =jaaroverzicht!G12 -> 0 | G107: FALSE | I107: totaal
B108: =jaaroverzicht!B13 -> 0 | C108: =jaaroverzicht!D13 -> 0 | D108: 0 | E108: =jaaroverzicht!G13 -> 0 | G108: FALSE | I108: =SUM(D103:D110) -> 0
B109: =jaaroverzicht!B14 -> 0 | C109: =jaaroverzicht!D14 -> 0 | D109: 0 | E109: =jaaroverzicht!G14 -> 0 | G109: FALSE
B110: =jaaroverzicht!B15 -> 0 | C110: =jaaroverzicht!D15 -> 0 | D110: 0 | E110: =jaaroverzicht!G15 -> 0 | G110: FALSE
B111: =jaaroverzicht!B16 -> 0 | C111: =jaaroverzicht!D16 -> 0 | D111: 0 | E111: =jaaroverzicht!G16 -> 0 | G111: FALSE
B112: =jaaroverzicht!B17 -> 0 | C112: =jaaroverzicht!D17 -> 0 | D112: =IF(G112=TRUE,"",E112) -> 0 | E112: =jaaroverzicht!G17 -> 0 | G112: FALSE | N112: Jaaroverzicht alle inkomsten en uitgave`s
B113: =jaaroverzicht!B18 -> 0 | C113: =jaaroverzicht!D18 -> 0 | D113: 0 | E113: =jaaroverzicht!G18 -> 0 | G113: FALSE
B114: =jaaroverzicht!B19 -> 0 | C114: =jaaroverzicht!D19 -> 0 | D114: 0 | E114: =jaaroverzicht!G19 -> 0 | G114: FALSE
B115: =jaaroverzicht!B20 -> 0 | C115: =jaaroverzicht!D20 -> 0 | D115: 0 | E115: =jaaroverzicht!G20 -> 0 | G115: FALSE
B116: =jaaroverzicht!B21 -> 0 | C116: =jaaroverzicht!D21 -> 0 | D116: 0 | E116: =jaaroverzicht!G21 -> 0 | G116: FALSE
B117: =jaaroverzicht!B22 -> 0 | C117: =jaaroverzicht!D22 -> 0 | D117: 0 | E117: =jaaroverzicht!G22 -> 0 | G117: FALSE
B118: =jaaroverzicht!B23 -> 0 | C118: =jaaroverzicht!D23 -> 0 | D118: 0 | E118: =jaaroverzicht!G23 -> 0 | G118: FALSE
B119: =jaaroverzicht!B24 -> 0 | C119: =jaaroverzicht!D24 -> 0 | D119: 0 | E119: =jaaroverzicht!G24 -> 0 | G119: FALSE
B120: =jaaroverzicht!B25 -> 0 | C120: =jaaroverzicht!D25 -> 0 | D120: 0 | E120: =jaaroverzicht!G25 -> 0 | G120: FALSE
A121: .. | B121: =jaaroverzicht!B26 -> 0 | C121: =jaaroverzicht!D26 -> 0 | D121: 0 | E121: =jaaroverzicht!G26 -> 0 | G121: FALSE
B122: =jaaroverzicht!B27 -> 0 | C122: =jaaroverzicht!D27 -> 0 | D122: 0 | E122: =jaaroverzicht!G27 -> 0 | G122: FALSE
B123: =jaaroverzicht!B28 -> 0 | C123: =jaaroverzicht!D28 -> 0 | D123: 0 | E123: =jaaroverzicht!G28 -> 0 | G123: FALSE
B124: =jaaroverzicht!B29 -> 0 | C124: =jaaroverzicht!D29 -> 0 | D124: 0 | E124: =jaaroverzicht!G29 -> 0 | G124: FALSE | I124: nog niet
B125: =jaaroverzicht!B30 -> 0 | C125: =jaaroverzicht!D30 -> 0 | D125: 0 | E125: =jaaroverzicht!G30 -> 0 | G125: FALSE | I125: betaald
B126: =jaaroverzicht!B31 -> 0 | C126: =jaaroverzicht!D31 -> 0 | D126: 0 | E126: =jaaroverzicht!G31 -> 0 | G126: FALSE | I126: totaal | N126: Eindsaldo - per maand | R126: Hier wordt het eindsaldo steeds meegenomen naar de volgende maand
B127: =jaaroverzicht!B32 -> 0 | C127: =jaaroverzicht!D32 -> 0 | D127: 0 | E127: =jaaroverzicht!G32 -> 0 | G127: FALSE | I127: =SUM(D111:D140) -> 0
B128: =jaaroverzicht!B33 -> 0 | C128: =jaaroverzicht!D33 -> 0 | D128: 0 | E128: =jaaroverzicht!G33 -> 0 | G128: FALSE
B129: =jaaroverzicht!B34 -> 0 | C129: =jaaroverzicht!D34 -> 0 | D129: 0 | E129: =jaaroverzicht!G34 -> 0 | G129: FALSE
B130: =jaaroverzicht!B35 -> 0 | C130: =jaaroverzicht!D35 -> 0 | D130: 0 | E130: =jaaroverzicht!G35 -> 0 | G130: FALSE
B131: =jaaroverzicht!B36 -> 0 | C131: =jaaroverzicht!D36 -> 0 | D131: 0 | E131: =jaaroverzicht!G36 -> 0 | G131: FALSE
B132: =jaaroverzicht!B37 -> 0 | C132: =jaaroverzicht!D37 -> 0 | D132: 0 | E132: =jaaroverzicht!G37 -> 0 | G132: FALSE
B133: =jaaroverzicht!B38 -> 0 | C133: =jaaroverzicht!D38 -> 0 | D133: 0 | E133: =jaaroverzicht!G38 -> 0 | G133: FALSE
B134: =jaaroverzicht!B39 -> 0 | C134: =jaaroverzicht!D39 -> 0 | D134: 0 | E134: =jaaroverzicht!G39 -> 0 | G134: FALSE
B135: =jaaroverzicht!B40 -> 0 | C135: =jaaroverzicht!D40 -> 0 | D135: 0 | E135: =jaaroverzicht!G40 -> 0 | G135: FALSE
B136: =jaaroverzicht!B41 -> 0 | C136: =jaaroverzicht!D41 -> 0 | D136: 0 | E136: =jaaroverzicht!G41 -> 0 | G136: FALSE
B137: =jaaroverzicht!B42 -> 0 | C137: =jaaroverzicht!D42 -> 0 | D137: 0 | E137: =jaaroverzicht!G42 -> 0 | G137: FALSE
B138: =jaaroverzicht!B43 -> 0 | C138: =jaaroverzicht!D43 -> 0 | D138: 0 | E138: =jaaroverzicht!G43 -> 0 | G138: FALSE
B139: =jaaroverzicht!B44 -> 0 | C139: =jaaroverzicht!D44 -> 0 | D139: 0 | E139: =jaaroverzicht!G44 -> 0 | G139: FALSE
B140: =jaaroverzicht!B45 -> 0 | C140: =jaaroverzicht!D45 -> 0 | D140: 0 | E140: =jaaroverzicht!G45 -> 0 | G140: FALSE
B141: Nog tegoed | D141: =jaaroverzicht!G46 -> 0 | E141: =I108 -> 0 | G141: FALSE
B142: Nog te betalen | D142: =jaaroverzicht!G47 -> 0 | E142: =I127 -> 0 | G142: FALSE
G143: FALSE | O143: 0
G144: FALSE
G145: FALSE
B146: =CONCATENATE(jaaroverzicht!H3," , ",jaaroverzicht!H4," t/m ",jaaroverzicht!H5) -> Periode 4 , 18 april t/m 17 mei | E146: =NOW() -> 2017-04-24T19:23:03.950 | G146: FALSE | N146: vul het huidige saldo in van je rekening | R146: =NOW() -> 2017-04-24T19:23:03.950 | T146: =NOW() -> 42849.80768
B147: =jaaroverzicht!H5-R146+1 -> 23.19231539 | C147: =IF(B147>=2,"dagen duurd deze periode nog",IF(B147=1,"dag duurd deze periode nog","ga naar de volgende periode !!!")) -> dagen duurd deze periode nog | G147: FALSE
C148: Er staat nu op de rekening : | E148: 0 | G148: FALSE | N148: vink aan, wat is af of bijgeschreven
B149: incasso | C149: Als alles is verekend : | E149: =E148+I156-I175 -> 0 | G149: FALSE | R149: Deze periode naar bureaublad in .pdf
B150: datum | G150: FALSE | N150: klik op de desbetreffende icoon, voor de internet site
B151: =jaaroverzicht!B8 -> 0 | C151: =jaaroverzicht!D8 -> 0 | D151: =IF(G151=TRUE,"",E151) -> 0 | E151: =jaaroverzicht!H8 -> 0 | G151: FALSE
B152: =jaaroverzicht!B9 -> 0 | C152: =jaaroverzicht!D9 -> 0 | D152: =IF(G152=TRUE,"",E152) -> 0 | E152: =jaaroverzicht!H9 -> 0 | G152: FALSE
B153: =jaaroverzicht!B10 -> 0 | C153: =jaaroverzicht!D10 -> 0 | D153: 0 | E153: =jaaroverzicht!H10 -> 0 | G153: FALSE | I153: nog niet
B154: =jaaroverzicht!B11 -> 0 | C154: =jaaroverzicht!D11 -> 0 | D154: 0 | E154: =jaaroverzicht!H11 -> 0 | G154: FALSE | I154: ontvangen
B155: =jaaroverzicht!B12 -> 0 | C155: =jaaroverzicht!D12 -> 0 | D155: 0 | E155: =jaaroverzicht!H12 -> 0 | G155: FALSE | I155: totaal
B156: =jaaroverzicht!B13 -> 0 | C156: =jaaroverzicht!D13 -> 0 | D156: 0 | E156: =jaaroverzicht!H13 -> 0 | G156: FALSE | I156: =SUM(D151:D158) -> 0
B157: =jaaroverzicht!B14 -> 0 | C157: =jaaroverzicht!D14 -> 0 | D157: 0 | E157: =jaaroverzicht!H14 -> 0 | G157: FALSE
B158: =jaaroverzicht!B15 -> 0 | C158: =jaaroverzicht!D15 -> 0 | D158: 0 | E158: =jaaroverzicht!H15 -> 0 | G158: FALSE
B159: =jaaroverzicht!B16 -> 0 | C159: =jaaroverzicht!D16 -> 0 | D159: 0 | E159: =jaaroverzicht!H16 -> 0 | G159: FALSE
B160: =jaaroverzicht!B17 -> 0 | C160: =jaaroverzicht!D17 -> 0 | D160: =IF(G160=TRUE,"",E160) -> 0 | E160: =jaaroverzicht!H17 -> 0 | G160: FALSE | N160: Jaaroverzicht alle inkomsten en uitgave`s
B161: =jaaroverzicht!B18 -> 0 | C161: =jaaroverzicht!D18 -> 0 | D161: 0 | E161: =jaaroverzicht!H18 -> 0 | G161: FALSE
B162: =jaaroverzicht!B19 -> 0 | C162: =jaaroverzicht!D19 -> 0 | D162: 0 | E162: =jaaroverzicht!H19 -> 0 | G162: FALSE
B163: =jaaroverzicht!B20 -> 0 | C163: =jaaroverzicht!D20 -> 0 | D163: =IF(G163=TRUE,"",E163) -> 0 | E163: =jaaroverzicht!H20 -> 0 | G163: FALSE
B164: =jaaroverzicht!B21 -> 0 | C164: =jaaroverzicht!D21 -> 0 | D164: 0 | E164: =jaaroverzicht!H21 -> 0 | G164: FALSE
B165: =jaaroverzicht!B22 -> 0 | C165: =jaaroverzicht!D22 -> 0 | D165: 0 | E165: =jaaroverzicht!H22 -> 0 | G165: FALSE
B166: =jaaroverzicht!B23 -> 0 | C166: =jaaroverzicht!D23 -> 0 | D166: 0 | E166: =jaaroverzicht!H23 -> 0 | G166: FALSE | R166: Reken machine
B167: =jaaroverzicht!B24 -> 0 | C167: =jaaroverzicht!D24 -> 0 | D167: =IF(G167=TRUE,"",E167) -> 0 | E167: =jaaroverzicht!H24 -> 0 | G167: FALSE
B168: =jaaroverzicht!B25 -> 0 | C168: =jaaroverzicht!D25 -> 0 | D168: 0 | E168: =jaaroverzicht!H25 -> 0 | G168: FALSE
A169: .. | B169: =jaaroverzicht!B26 -> 0 | C169: =jaaroverzicht!D26 -> 0 | D169: 0 | E169: =jaaroverzicht!H26 -> 0 | G169: FALSE
B170: =jaaroverzicht!B27 -> 0 | C170: =jaaroverzicht!D27 -> 0 | D170: 0 | E170: =jaaroverzicht!H27 -> 0 | G170: FALSE
B171: =jaaroverzicht!B28 -> 0 | C171: =jaaroverzicht!D28 -> 0 | D171: 0 | E171: =jaaroverzicht!H28 -> 0 | G171: FALSE
B172: =jaaroverzicht!B29 -> 0 | C172: =jaaroverzicht!D29 -> 0 | D172: 0 | E172: =jaaroverzicht!H29 -> 0 | G172: FALSE | I172: nog niet
B173: =jaaroverzicht!B30 -> 0 | C173: =jaaroverzicht!D30 -> 0 | D173: 0 | E173: =jaaroverzicht!H30 -> 0 | G173: FALSE | I173: betaald
B174: =jaaroverzicht!B31 -> 0 | C174: =jaaroverzicht!D31 -> 0 | D174: 0 | E174: =jaaroverzicht!H31 -> 0 | G174: FALSE | I174: totaal | N174: Eindsaldo - per maand | R174: Hier wordt het eindsaldo steeds meegenomen naar de volgende maand
B175: =jaaroverzicht!B32 -> 0 | C175: =jaaroverzicht!D32 -> 0 | D175: 0 | E175: =jaaroverzicht!H32 -> 0 | G175: FALSE | I175: =SUM(D159:D188) -> 0
B176: =jaaroverzicht!B33 -> 0 | C176: =jaaroverzicht!D33 -> 0 | D176: 0 | E176: =jaaroverzicht!H33 -> 0 | G176: FALSE
B177: =jaaroverzicht!B34 -> 0 | C177: =jaaroverzicht!D34 -> 0 | D177: 0 | E177: =jaaroverzicht!H34 -> 0 | G177: FALSE
B178: =jaaroverzicht!B35 -> 0 | C178: =jaaroverzicht!D35 -> 0 | D178: 0 | E178: =jaaroverzicht!H35 -> 0 | G178: FALSE
B179: =jaaroverzicht!B36 -> 0 | C179: =jaaroverzicht!D36 -> 0 | D179: 0 | E179: =jaaroverzicht!H36 -> 0 | G179: FALSE
B180: =jaaroverzicht!B37 -> 0 | C180: =jaaroverzicht!D37 -> 0 | D180: 0 | E180: =jaaroverzicht!H37 -> 0 | G180: FALSE
B181: =jaaroverzicht!B38 -> 0 | C181: =jaaroverzicht!D38 -> 0 | D181: 0 | E181: =jaaroverzicht!H38 -> 0 | G181: FALSE
B182: =jaaroverzicht!B39 -> 0 | C182: =jaaroverzicht!D39 -> 0 | D182: 0 | E182: =jaaroverzicht!H39 -> 0 | G182: FALSE
B183: =jaaroverzicht!B40 -> 0 | C183: =jaaroverzicht!D40 -> 0 | D183: 0 | E183: =jaaroverzicht!H40 -> 0 | G183: FALSE
B184: =jaaroverzicht!B41 -> 0 | C184: =jaaroverzicht!D41 -> 0 | D184: 0 | E184: =jaaroverzicht!H41 -> 0 | G184: FALSE
B185: =jaaroverzicht!B42 -> 0 | C185: =jaaroverzicht!D42 -> 0 | D185: 0 | E185: =jaaroverzicht!H42 -> 0 | G185: FALSE
B186: =jaaroverzicht!B43 -> 0 | C186: =jaaroverzicht!D43 -> 0 | D186: 0 | E186: =jaaroverzicht!H43 -> 0 | G186: FALSE
B187: =jaaroverzicht!B44 -> 0 | C187: =jaaroverzicht!D44 -> 0 | D187: 0 | E187: =jaaroverzicht!H44 -> 0 | G187: FALSE
B188: =jaaroverzicht!B45 -> 0 | C188: =jaaroverzicht!D45 -> 0 | D188: 0 | E188: =jaaroverzicht!H45 -> 0 | G188: FALSE
B189: Nog tegoed | D189: =jaaroverzicht!H46 -> 0 | E189: =I156 -> 0 | G189: FALSE
B190: Nog te betalen | D190: =jaaroverzicht!H47 -> 0 | E190: =I175 -> 0 | G190: FALSE
G191: FALSE
G192: FALSE
G193: FALSE
B194: =CONCATENATE(jaaroverzicht!I3," , ",jaaroverzicht!I4," t/m ",jaaroverzicht!I5) -> Periode 5 , 18 mei t/m 18 juni | E194: =NOW() -> 2017-04-24T19:23:03.950 | G194: FALSE | N194: vul het huidige saldo in van je rekening | R194: =NOW() -> 2017-04-24T19:23:03.950 | T194: =NOW() -> 42849.80768
B195: =jaaroverzicht!I5-R194+1 -> 55.19231539 | C195: =IF(B195>=2,"dagen duurd deze periode nog",IF(B95=1,"dag duurd deze periode nog","ga naar de volgende periode !!!")) -> dagen duurd deze periode nog | G195: FALSE
C196: Er staat nu op de rekening : | E196: 0 | G196: FALSE | N196: vink aan, wat is af of bijgeschreven
B197: incasso | C197: Als alles is verekend : | E197: =E196+I204-I223 -> 0 | G197: FALSE | R197: Deze periode naar bureaublad in .pdf
B198: datum | G198: FALSE | N198: klik op de desbetreffende icoon, voor de internet site
B199: =jaaroverzicht!B8 -> 0 | C199: =jaaroverzicht!D8 -> 0 | D199: =IF(G199=TRUE,"",E199) -> 0 | E199: =jaaroverzicht!I8 -> 0 | G199: FALSE
B200: =jaaroverzicht!B9 -> 0 | C200: =jaaroverzicht!D9 -> 0 | D200: =IF(G200=TRUE,"",E200) -> 0 | E200: =jaaroverzicht!I9 -> 0 | G200: FALSE
B201: =jaaroverzicht!B10 -> 0 | C201: =jaaroverzicht!D10 -> 0 | D201: 0 | E201: =jaaroverzicht!I10 -> 0 | G201: FALSE | I201: nog niet
... 374 more rows
